fUSD/lending_fUSD_20250514
["ID","MTS","AMOUNT","RATE_DAILY","PERIOD"]
[361080251,1747236638677,-6528.71,0.00010958,2]
[361080253,1747236638687,-400.0,0.00010958,2]
[361080255,1747236638696,-694.95,0.00010958,2]
[361080257,1747236638705,-400.0,0.00010958,2]
[361080259,1747236638715,-186.646967,0.00010958,2]
[361080261,1747236638724,-18622.172486,0.00010958,2]
[361080262,1747236638734,-400.0,0.00010958,2]
[361080263,1747236638743,-537.23,0.00010958,2]
[361080264,1747236638754,-1041.37,0.00010958,2]
[361080265,1747236638763,-400.0,0.00010958,2]
[361080266,1747236638773,-400.0,0.00010958,2]
[361080267,1747236638783,-5526.84,0.00010958,2]
[361080268,1747236638792,-1421.23,0.00010958,2]
[361080269,1747236638802,-1575.1,0.00010958,2]
[361080270,1747236638811,-604.05,0.00010958,2]
[361080271,1747236638822,-467.33,0.00010958,2]
[361080272,1747236638831,-400.0,0.00010958,2]
[361080273,1747236638841,-400.0,0.00010958,2]
[361080274,1747236638851,-1037.6,0.00010958,2]
[361080275,1747236638862,-560.53,0.00010958,2]
[361080276,1747236638872,-2031.55,0.00010958,2]
[361080278,1747236638882,-400.0,0.00010958,2]
[361080279,1747236638892,-400.0,0.00010958,2]
[361080280,1747236638901,-1749.57,0.00010958,2]
[361080281,1747236638911,-400.0,0.00010958,2]
[361080282,1747236638920,-400.0,0.00010958,2]
[361080283,1747236638932,-400.0,0.00010958,2]
[361080284,1747236638941,-586.24,0.00010958,2]
[361080285,1747236638951,-400.0,0.00010958,2]
[361080286,1747236638960,-400.0,0.00010958,2]
[361080287,1747236638970,-6851.03,0.00010958,2]
[361080288,1747236638979,-400.0,0.00010958,2]
[361080289,1747236638988,-960.4,0.00010958,2]
[361080290,1747236638997,-400.0,0.00010958,2]
[361080291,1747236639007,-590.97,0.00010958,2]
[361080292,1747236639016,-400.0,0.00010958,2]
[361080293,1747236639025,-670.93,0.00010958,2]
[361080294,1747236639034,-400.0,0.00010958,2]
[361080295,1747236639043,-9508.42,0.00010958,2]
[361080296,1747236639053,-1288.37,0.00010958,2]
[361080297,1747236639062,-1117.7,0.00010958,2]
[361080298,1747236639071,-400.0,0.00010958,2]
[361080299,1747236639081,-481.58,0.00010958,2]
[361080300,1747236639090,-842.43,0.00010958,2]
[361080301,1747236639099,-400.0,0.00010958,2]
[361080302,1747236639108,-400.0,0.00010958,2]
[361080303,1747236639118,-1262.0,0.00010958,2]
[361080304,1747236639127,-437.83,0.00010958,2]
[361080305,1747236639136,-400.0,0.00010958,2]
[361080306,1747236639146,-400.0,0.00010958,2]
[361080307,1747236639155,-514.47,0.00010958,2]
[361080308,1747236639165,-836.38,0.00010958,2]
[361080309,1747236639178,-823.49,0.00010958,2]
[361080310,1747236639187,-2092.85,0.00010958,2]
[361080311,1747236639197,-843.91,0.00010958,2]
[361080312,1747236639213,-18438.35189771,0.00010958,2]
[361080313,1747236639233,-45525.80810229,0.00010958,2]
[361080314,1747236639243,-400.0,0.00010958,2]
[361080315,1747236639253,-1288.66,0.00010958,2]
[361080316,1747236639264,-1467.1,0.00010958,2]
[361080317,1747236639275,-2231.64,0.00010958,2]
[361080318,1747236639286,-400.0,0.00010958,2]
[361080319,1747236639296,-400.0,0.00010958,2]
[361080320,1747236639307,-613.15,0.00010958,2]
[361080321,1747236639317,-998.76,0.00010958,2]
[361080322,1747236639327,-400.0,0.00010958,2]
[361080323,1747236639336,-406.63,0.00010958,2]
[361080324,1747236639346,-805.33,0.00010958,2]
[361080325,1747236639355,-400.0,0.00010958,2]
[361080326,1747236639365,-814.17,0.00010958,2]
[361080327,1747236639375,-400.0,0.00010958,2]
[361080328,1747236639385,-802.62,0.00010958,2]
[361080329,1747236639396,-400.0,0.00010958,2]
[361080330,1747236639407,-414.060864,0.00010958,2]
[361080331,1747236639418,-400.0,0.00010958,2]
[361080332,1747236639431,-400.0,0.00010958,2]
[361080333,1747236639441,-400.0,0.00010958,2]
[361080334,1747236639451,-1027.27,0.00010958,2]
[361080335,1747236639461,-400.0,0.00010958,2]
[361080336,1747236639470,-500.0,0.00010958,2]
[361080337,1747236639480,-493.82,0.00010958,2]
[361080338,1747236639489,-400.0,0.00010958,2]
[361080339,1747236639499,-400.0,0.00010958,2]
[361080340,1747236639509,-400.0,0.00010958,2]
[361080341,1747236639518,-400.0,0.00010958,2]
[361080342,1747236639528,-2060.66,0.00010958,2]
[361080343,1747236639538,-400.0,0.00010958,2]
[361080344,1747236639549,-400.0,0.00010958,2]
[361080345,1747236639558,-400.0,0.00010958,2]
[361080346,1747236639569,-3660.52,0.00010958,2]
[361080347,1747236639578,-400.0,0.00010959,2]
[361080348,1747236639587,-400.0,0.00010959,2]
[361080349,1747236639597,-400.0,0.00010959,2]
[361080350,1747236639607,-400.0,0.00010959,2]
[361080351,1747236639616,-400.0,0.00010959,2]
[361080352,1747236639627,-400.0,0.00010959,2]
[361080353,1747236639637,-400.0,0.00010959,2]
[361080354,1747236639646,-400.0,0.00010959,2]
[361080355,1747236639656,-400.0,0.00010959,2]
[361080356,1747236639665,-541.07,0.00010959,2]
[361080357,1747236639675,-1693.5,0.00010959,2]
[361080358,1747236639684,-42581.66441912,0.00010959,2]
[361080359,1747236639694,-634.48,0.00010959,2]
[361080360,1747236639704,-400.0,0.00010959,2]
[361080361,1747236639716,-400.0,0.00010959,2]
[361080362,1747236639727,-400.0,0.00010959,2]
[361080363,1747236639739,-498.53,0.00010959,2]
[361080364,1747236639752,-400.0,0.00010959,2]
[361080365,1747236639762,-400.0,0.00010959,2]
[361080366,1747236639773,-400.0,0.00010959,2]
[361080367,1747236639783,-400.0,0.00010959,2]
[361080368,1747236639793,-400.0,0.00010959,2]
[361080369,1747236640047,-510.82,0.00010959,2]
[361080370,1747236640057,-400.0,0.00010959,2]
[361080371,1747236640066,-434.62,0.00010959,2]
[361080372,1747236640075,-576.99,0.00010959,2]
[361080373,1747236640084,-400.0,0.00010959,2]
[361080374,1747236640093,-400.0,0.00010959,2]
[361080375,1747236640102,-400.0,0.00010959,2]
[361080376,1747236640111,-400.0,0.00010959,2]
[361080377,1747236640120,-465.16,0.00010959,2]
[361080378,1747236640130,-598.88,0.00010959,2]
[361080379,1747236640140,-400.0,0.00010959,2]
[361080380,1747236640149,-400.0,0.00010959,2]
[361080381,1747236640159,-400.0,0.00010959,2]
[361080382,1747236640168,-400.0,0.00010959,2]
[361080383,1747236640180,-400.0,0.00010959,2]
[361080384,1747236640190,-400.0,0.00010959,2]
[361080385,1747236640199,-400.0,0.00010959,2]
[361080386,1747236640210,-400.0,0.00010959,2]
[361080387,1747236640219,-400.0,0.00010959,2]
[361080388,1747236640228,-1000.96,0.00010959,2]
[361080389,1747236640237,-400.0,0.00010959,2]
[361080390,1747236640246,-400.0,0.00010959,2]
[361080391,1747236640254,-400.0,0.00010959,2]
[361080393,1747236640264,-400.0,0.00010959,2]
[361080394,1747236640273,-400.0,0.00010959,2]
[361080395,1747236640284,-400.0,0.00010959,2]
[361080396,1747236640294,-400.0,0.00010959,2]
[361080397,1747236640304,-400.0,0.00010959,2]
[361080398,1747236640314,-3196.84,0.00010959,2]
[361080399,1747236640323,-400.0,0.00010959,2]
[361080400,1747236640332,-400.0,0.00010959,2]
[361080401,1747236640341,-400.0,0.00010959,2]
[361080402,1747236640351,-400.0,0.00010959,2]
[361080403,1747236640361,-400.0,0.00010959,2]
[361080404,1747236640371,-400.0,0.00010959,2]
[361080405,1747236640381,-400.0,0.00010959,2]
[361080406,1747236640391,-504.27,0.00010959,2]
[361080407,1747236640401,-400.0,0.00010959,2]
[361080408,1747236640411,-422.54,0.00010959,2]
[361080410,1747236640421,-400.0,0.00010959,2]
[361080411,1747236640433,-499.57,0.00010959,2]
[361080412,1747236640444,-400.0,0.00010959,2]
[361080413,1747236640455,-400.0,0.00010959,2]
[361080414,1747236640465,-400.0,0.00010959,2]
[361080415,1747236640475,-400.0,0.00010959,2]
[361080416,1747236640484,-510.42,0.00010959,2]
[361080417,1747236640494,-400.0,0.00010959,2]
[361080418,1747236640504,-400.0,0.00010959,2]
[361080419,1747236640513,-438.57,0.00010959,2]
[361080420,1747236640522,-400.0,0.00010959,2]
[361080421,1747236640532,-400.0,0.00010959,2]
[361080422,1747236640542,-400.0,0.00010959,2]
[361080423,1747236640552,-400.0,0.00010959,2]
[361080424,1747236640561,-400.0,0.00010959,2]
[361080425,1747236640570,-400.0,0.00010959,2]
[361080426,1747236640580,-400.0,0.00010959,2]
[361080427,1747236640590,-400.0,0.00010959,2]
[361080428,1747236640600,-400.0,0.00010959,2]
[361080429,1747236640609,-703.43,0.00010959,2]
[361080430,1747236640619,-450.0,0.00010959,2]
[361080431,1747236640629,-400.0,0.00010959,2]
[361080432,1747236640638,-438.68,0.00010959,2]
[361080433,1747236640648,-400.0,0.00010959,2]
[361080434,1747236640657,-668.83,0.00010959,2]
[361080435,1747236640667,-595.76,0.00010959,2]
[361080436,1747236640677,-539.49,0.00010959,2]
[361080437,1747236640686,-418.27,0.00010959,2]
[361080438,1747236640696,-400.0,0.00010959,2]
[361080439,1747236640705,-450.0,0.00010959,2]
[361080440,1747236640714,-504.51,0.00010959,2]
[361080441,1747236640724,-445.83,0.00010959,2]
[361080442,1747236640734,-400.0,0.00010959,2]
[361080443,1747236640744,-400.0,0.00010959,2]
[361080444,1747236640756,-450.0,0.00010959,2]
[361080445,1747236640765,-456.04402487,0.00010959,2]
[361080446,1747236640775,-400.0,0.00010959,2]
[361080447,1747236640784,-199.11023304,0.00010959,2]
[361080448,1747236640794,-450.0,0.00010959,2]
[361080449,1747236640804,-350.28521154,0.00010959,2]
[361080450,1747236640814,-1076.82,0.00010959,2]
[361080451,1747236640824,-400.0,0.00010959,2]
[361080452,1747236640833,-615.31,0.00010959,2]
[361080453,1747236640843,-818.39,0.00010959,2]
[361080454,1747236640853,-400.0,0.00010959,2]
[361080455,1747236640862,-400.0,0.00010959,2]
[361080456,1747236640872,-2304.76,0.00010959,2]
[361080457,1747236640881,-1392.39,0.00010959,2]
[361080458,1747236640891,-400.0,0.00010959,2]
[361080459,1747236640900,-400.0,0.00010959,2]
[361080460,1747236640909,-1403.01,0.00010959,2]
[361080461,1747236640921,-980.86,0.00010959,2]
[361080462,1747236640932,-1466.85,0.00010959,2]
[361080463,1747236640942,-1077.84,0.00010959,2]
[361080464,1747236640951,-845.67,0.00010959,2]
[361080465,1747236640961,-940.89,0.00010959,2]
[361080466,1747236640970,-694.7,0.00010959,2]
[361080467,1747236640980,-1426.96,0.00010959,2]
[361080468,1747236640989,-2068.51,0.00010959,2]
[361080469,1747236640999,-400.0,0.00010959,2]
[361080470,1747236641008,-400.0,0.00010959,2]
[361080471,1747236641017,-961.23,0.00010959,2]
[361080472,1747236641026,-400.0,0.00010959,2]
[361080473,1747236641037,-1834.99,0.00010959,2]
[361080474,1747236641046,-400.0,0.00010959,2]
[361080475,1747236641055,-400.0,0.00010959,2]
[361080476,1747236641065,-400.0,0.00010959,2]
[361080477,1747236641074,-500.27,0.00010959,2]
[361080478,1747236641083,-9317.56,0.00010959,2]
[361080479,1747236641092,-585.29,0.00010959,2]
[361080480,1747236641101,-400.0,0.00010959,2]
[361080481,1747236641111,-1842.5,0.00010959,2]
[361080482,1747236641120,-1060.28,0.00010959,2]
[361080483,1747236641129,-10992.83,0.00010959,2]
[361080484,1747236641138,-430.25,0.00010959,2]
[361080485,1747236641148,-400.0,0.00010959,2]
[361080486,1747236641157,-2823.6,0.00010959,2]
[361080487,1747236641166,-400.0,0.00010959,2]
[361080488,1747236641177,-1051.87,0.00010959,2]
[361080489,1747236641187,-400.0,0.00010959,2]
[361080490,1747236641197,-692.99,0.00010959,2]
[361080491,1747236641207,-400.0,0.00010959,2]
[361080492,1747236641218,-400.0,0.00010959,2]
[361080493,1747236641227,-400.0,0.00010959,2]
[361080494,1747236641236,-400.0,0.00010959,2]
[361080495,1747236641246,-461.76,0.00010959,2]
[361080496,1747236641257,-3073.67,0.00010959,2]
[361080497,1747236641266,-3319.73,0.00010959,2]
[361080498,1747236641275,-420.01,0.00010959,2]
[361080499,1747236641285,-400.0,0.00010959,2]
[361080500,1747236641295,-2073.26,0.00010959,2]
[361080501,1747236641305,-441.44,0.00010959,2]
[361080503,1747236641314,-400.0,0.00010959,2]
[361080504,1747236641324,-400.0,0.00010959,2]
[361080505,1747236641333,-400.0,0.00010959,2]
[361080506,1747236641342,-9141.39,0.00010959,2]
[361080507,1747236641351,-562.76,0.00010959,2]
[361080508,1747236641361,-655.8,0.00010959,2]
[361080509,1747236641371,-400.0,0.00010959,2]
[361080510,1747236641380,-400.0,0.00010959,2]
[361080511,1747236641390,-7798.15,0.00010959,2]
[361080512,1747236641399,-400.0,0.00010959,2]
[361080513,1747236641408,-1288.37,0.00010959,2]
[361080514,1747236641418,-627.08,0.00010959,2]
[361080515,1747236641429,-979.91,0.00010959,2]
[361080516,1747236641439,-18496.17,0.00010959,2]
[361080518,1747236641448,-400.0,0.00010959,2]
[361080519,1747236641458,-1112.29,0.00010959,2]
[361080520,1747236641468,-400.0,0.00010959,2]
[361080521,1747236641477,-400.0,0.00010959,2]
[361080522,1747236641486,-652.77,0.00010959,2]
[361080523,1747236641496,-519.97,0.00010959,2]
[361080524,1747236641505,-795.91,0.00010959,2]
[361080525,1747236641515,-3919.78,0.00010959,2]
[361080526,1747236641524,-409.42,0.00010959,2]
[361080527,1747236641534,-1188.9,0.00010959,2]
[361080528,1747236641543,-22544.21,0.00010959,2]
[361080529,1747236641553,-400.0,0.00010959,2]
[361080530,1747236641563,-1655.59,0.00010959,2]
[361080531,1747236641573,-400.0,0.00010959,2]
[361080532,1747236641583,-450.09,0.00010959,2]
[361080533,1747236641593,-400.0,0.00010959,2]
[361080534,1747236641602,-1423.56,0.00010959,2]
[361080535,1747236641612,-400.0,0.00010959,2]
[361080536,1747236641621,-596.75681142,0.00010959,2]
[361080537,1747236641631,-400.0,0.00010959,2]
[361080538,1747236641641,-400.0,0.00010959,2]
[361080539,1747236641650,-400.0,0.00010959,2]
[361080541,1747236641659,-537.55,0.00010959,2]
[361080543,1747236641669,-400.0,0.00010959,2]
[361080544,1747236641680,-400.0,0.00010959,2]
[361080546,1747236641689,-400.0,0.00010959,2]
[361080548,1747236641698,-400.0,0.00010959,2]
[361080551,1747236641708,-4864.65,0.00010959,2]
[361080553,1747236641719,-766.33,0.00010959,2]
[361080555,1747236641729,-400.0,0.0001096,2]
[361080557,1747236641739,-400.0,0.0001096,2]
[361080559,1747236641749,-400.0,0.0001096,2]
[361080561,1747236641758,-400.0,0.0001096,2]
[361080564,1747236641768,-400.0,0.0001096,2]
[361080565,1747236641778,-400.0,0.0001096,2]
[361080568,1747236641789,-400.0,0.0001096,2]
[361080569,1747236641799,-400.0,0.0001096,2]
[361080571,1747236641808,-33.20850171,0.0001096,2]
[361080572,1747236641846,-366.79149829,0.0001096,2]
[361080573,1747236641856,-400.0,0.0001096,2]
[361080574,1747236641865,-400.0,0.0001096,2]
[361080575,1747236641875,-400.0,0.0001096,2]
[361080576,1747236641884,-400.0,0.0001096,2]
[361080577,1747236641894,-250.0,0.0001096,2]
[361080578,1747236641903,-400.0,0.0001096,2]
[361080579,1747236641913,-400.0,0.0001096,2]
[361080580,1747236641922,-400.0,0.0001096,2]
[361080581,1747236641934,-400.0,0.0001096,2]
[361080582,1747236641943,-400.0,0.0001096,2]
[361080583,1747236641956,-400.0,0.0001096,2]
[361080584,1747236641966,-377.10481776,0.0001096,2]
[361080585,1747236641976,-400.0,0.0001096,2]
[361080586,1747236641985,-400.0,0.0001096,2]
[361080587,1747236641994,-400.0,0.0001096,2]
[361080588,1747236642004,-400.0,0.0001096,2]
[361080589,1747236642013,-305.02768395,0.0001096,2]
[361080590,1747236642040,-443.2079453,0.000109,2]
[361080591,1747236642050,-94.97231605,0.0001096,2]
[361080592,1747236642060,-400.0,0.0001096,2]
[361080593,1747236642069,-400.0,0.0001096,2]
[361080594,1747236642078,-471.14,0.0001096,2]
[361080595,1747236642088,-400.0,0.0001096,2]
[361080596,1747236642097,-400.0,0.0001096,2]
[361080597,1747236642107,-400.0,0.0001096,2]
[361080598,1747236642116,-400.0,0.0001096,2]
[361080599,1747236642126,-423.3,0.0001096,2]
[361080600,1747236642135,-400.0,0.0001096,2]
[361080601,1747236642145,-400.0,0.0001096,2]
[361080602,1747236642154,-400.0,0.0001096,2]
[361080603,1747236642163,-400.0,0.0001096,2]
[361080604,1747236642173,-400.0,0.0001096,2]
[361080605,1747236642183,-400.0,0.0001096,2]
[361080606,1747236642193,-400.0,0.0001096,2]
[361080607,1747236642205,-400.0,0.0001096,2]
[361080608,1747236642215,-236.22503957,0.0001096,2]
[361080609,1747236642225,-400.0,0.0001096,2]
[361080610,1747236642234,-400.0,0.0001096,2]
[361080611,1747236642245,-400.0,0.0001096,2]
[361080612,1747236642255,-400.0,0.0001096,2]
[361080613,1747236642264,-429.48,0.0001096,2]
[361080614,1747236642274,-400.0,0.0001096,2]
[361080615,1747236642285,-364.66726539,0.0001096,2]
[361080616,1747236642295,-400.0,0.0001096,2]
[361080617,1747236642305,-507.18303721,0.0001096,2]
[361080618,1747236642315,-655.07,0.0001096,2]
[361080619,1747236642326,-400.0,0.0001096,2]
[361080620,1747236642337,-400.0,0.0001096,2]
[361080621,1747236642348,-400.0,0.0001096,2]
[361080622,1747236642358,-413.81138427,0.0001096,2]
[361080623,1747236642368,-400.0,0.0001096,2]
[361080624,1747236642379,-400.0,0.0001096,2]
[361080625,1747236642389,-400.0,0.0001096,2]
[361080626,1747236642399,-400.0,0.0001096,2]
[361080627,1747236642409,-560.44,0.0001096,2]
[361080628,1747236642418,-400.0,0.0001096,2]
[361080629,1747236642430,-400.0,0.0001096,2]
[361080630,1747236642440,-400.0,0.0001096,2]
[361080631,1747236642450,-400.0,0.0001096,2]
[361080632,1747236642460,-524.83550555,0.0001096,2]
[361080633,1747236642471,-400.0,0.0001096,2]
[361080634,1747236642481,-407.22777778,0.0001096,2]
[361080635,1747236642491,-400.0,0.0001096,2]
[361080636,1747236642500,-400.0,0.0001096,2]
[361080637,1747236642510,-432.37,0.0001096,2]
[361080638,1747236642520,-400.0,0.0001096,2]
[361080639,1747236642530,-283.6397174,0.0001096,2]
[361080640,1747236642539,-400.0,0.0001096,2]
[361080641,1747236642549,-400.0,0.0001096,2]
[361080642,1747236642559,-400.0,0.0001096,2]
[361080643,1747236642568,-400.0,0.0001096,2]
[361080644,1747236642579,-400.0,0.0001096,2]
[361080645,1747236642589,-400.0,0.0001096,2]
[361080646,1747236642599,-400.0,0.0001096,2]
[361080647,1747236642610,-400.0,0.0001096,2]
[361080648,1747236642620,-400.0,0.0001096,2]
[361080649,1747236642630,-400.0,0.0001096,2]
[361080650,1747236642640,-400.0,0.0001096,2]
[361080651,1747236642649,-400.0,0.0001096,2]
[361080652,1747236642659,-500.0,0.0001096,2]
[361080653,1747236642668,-400.0,0.0001096,2]
[361080654,1747236642682,-400.0,0.0001096,2]
[361080655,1747236642692,-400.0,0.0001096,2]
[361080656,1747236642701,-400.0,0.0001096,2]
[361080657,1747236642711,-400.0,0.0001096,2]
[361080658,1747236642720,-400.0,0.0001096,2]
[361080659,1747236642730,-400.0,0.0001096,2]
[361080660,1747236642740,-400.0,0.0001096,2]
[361080661,1747236642750,-400.0,0.0001096,2]
[361080662,1747236642760,-400.0,0.0001096,2]
[361080663,1747236642770,-400.0,0.0001096,2]
[361080664,1747236642780,-400.0,0.0001096,2]
[361080665,1747236642790,-400.0,0.0001096,2]
[361080666,1747236642799,-400.0,0.0001096,2]
[361080667,1747236642809,-400.0,0.0001096,2]
[361080668,1747236642818,-400.0,0.0001096,2]
[361080669,1747236642828,-400.0,0.0001096,2]
[361080670,1747236642838,-400.0,0.0001096,2]
[361080671,1747236642848,-400.0,0.0001096,2]
[361080672,1747236642857,-500.0,0.0001096,2]
[361080673,1747236642866,-639.73,0.0001096,2]
[361080674,1747236642876,-426.71,0.0001096,2]
[361080675,1747236642885,-400.0,0.0001096,2]
[361080676,1747236642895,-400.0,0.0001096,2]
[361080677,1747236642904,-400.0,0.0001096,2]
[361080678,1747236642914,-400.0,0.0001096,2]
[361080679,1747236642923,-1131.35,0.0001096,2]
[361080680,1747236642934,-400.0,0.0001096,2]
[361080681,1747236642952,-400.0,0.0001096,2]
[361080682,1747236642961,-400.0,0.0001096,2]
[361080683,1747236642971,-400.0,0.0001096,2]
[361080684,1747236642980,-400.0,0.0001096,2]
[361080685,1747236642989,-1081.25,0.0001096,2]
[361080686,1747236642999,-400.0,0.0001096,2]
[361080687,1747236643008,-400.0,0.0001096,2]
[361080688,1747236643018,-589.71,0.0001096,2]
[361080689,1747236643027,-400.0,0.0001096,2]
[361080690,1747236643037,-400.0,0.0001096,2]
[361080691,1747236643047,-400.0,0.0001096,2]
[361080692,1747236643056,-671.59,0.0001096,2]
[361080693,1747236643065,-400.0,0.0001096,2]
[361080694,1747236643074,-784.17,0.0001096,2]
[361080695,1747236643083,-351.7991323,0.0001096,2]
[361080696,1747236643092,-654.87,0.0001096,2]
[361080697,1747236643101,-400.0,0.0001096,2]
[361080698,1747236643110,-400.0,0.0001096,2]
[361080699,1747236643119,-400.0,0.0001096,2]
[361080700,1747236643127,-7466.84,0.0001096,2]
[361080701,1747236643137,-400.0,0.0001096,2]
[361080702,1747236643146,-478.63,0.0001096,2]
[361080703,1747236643155,-525.36020938,0.0001096,2]
[361080704,1747236643164,-400.0,0.0001096,2]
[361080705,1747236643173,-754.64,0.0001096,2]
[361080706,1747236643184,-400.0,0.0001096,2]
[361080707,1747236643194,-400.0,0.0001096,2]
[361080708,1747236643203,-400.0,0.0001096,2]
[361080709,1747236643218,-400.0,0.0001096,2]
[361080710,1747236643227,-1019.17,0.0001096,2]
[361080711,1747236643237,-400.0,0.0001096,2]
[361080712,1747236643246,-400.0,0.0001096,2]
[361080713,1747236643257,-495.99,0.0001096,2]
[361080714,1747236643267,-400.0,0.0001096,2]
[361080715,1747236643276,-12018.23,0.0001096,2]
[361080716,1747236643286,-545.35,0.0001096,2]
[361080717,1747236643295,-400.0,0.0001096,2]
[361080718,1747236643305,-638.96,0.0001096,2]
[361080719,1747236643314,-400.0,0.0001096,2]
[361080720,1747236643323,-400.0,0.0001096,2]
[361080721,1747236643332,-2440.36,0.0001096,2]
[361080722,1747236643342,-322.22408161,0.0001096,2]
[361080723,1747236643352,-400.0,0.0001096,2]
[361080725,1747236643361,-400.0,0.0001096,2]
[361080727,1747236643371,-400.0,0.0001096,2]
[361080729,1747236643380,-400.0,0.0001096,2]
[361080731,1747236643390,-400.0,0.0001096,2]
[361080732,1747236643399,-538.23,0.0001096,2]
[361080733,1747236643408,-400.0,0.0001096,2]
[361080734,1747236643419,-3997.07,0.0001096,2]
[361080736,1747236643431,-400.0,0.0001096,2]
[361080737,1747236643440,-869.69,0.0001096,2]
[361080739,1747236643450,-527.77,0.0001096,2]
[361080740,1747236643460,-460.26,0.0001096,2]
[361080741,1747236643470,-576.39,0.0001096,2]
[361080742,1747236643479,-400.0,0.0001096,2]
[361080743,1747236643489,-400.0,0.0001096,2]
[361080744,1747236643499,-400.0,0.0001096,2]
[361080745,1747236643508,-400.0,0.0001096,2]
[361080746,1747236643518,-400.0,0.0001096,2]
[361080747,1747236643527,-423.22668239,0.0001096,2]
[361080748,1747236643537,-774.43,0.0001096,2]
[361080749,1747236643546,-400.0,0.0001096,2]
[361080750,1747236643556,-400.0,0.0001096,2]
[361080751,1747236643565,-400.0,0.0001096,2]
[361080752,1747236643574,-400.0,0.0001096,2]
[361080753,1747236643584,-400.0,0.0001096,2]
[361080754,1747236643593,-400.0,0.0001096,2]
[361080755,1747236643602,-400.0,0.0001096,2]
[361080756,1747236643612,-338.80938459,0.0001096,2]
[361080757,1747236643621,-410.86219699,0.0001096,2]
[361080758,1747236643630,-400.0,0.0001096,2]
[361080759,1747236643639,-470.27589542,0.0001096,2]
[361080760,1747236643648,-1288.37,0.00010961,2]
[361080761,1747236643658,-400.0,0.00010962,2]
[361080762,1747236643667,-400.0,0.00010962,2]
[361080763,1747236643679,-446.67304499,0.00010962,2]
[361080764,1747236643688,-461.85,0.00010962,2]
[361080765,1747236643698,-400.8,0.00010962,2]
[361080766,1747236643707,-400.0,0.00010962,2]
[361080767,1747236643716,-412.43616069,0.00010962,2]
[361080768,1747236643725,-400.0,0.00010962,2]
[361080769,1747236643736,-400.0,0.00010962,2]
[361080770,1747236643746,-460.98,0.00010962,2]
[361080771,1747236643755,-498.17,0.00010962,2]
[361080772,1747236643764,-400.0,0.00010962,2]
[361080773,1747236643774,-771.86,0.00010962,2]
[361080774,1747236643783,-400.0,0.00010962,2]
[361080775,1747236643792,-400.0,0.00010962,2]
[361080776,1747236643801,-400.0,0.00010962,2]
[361080777,1747236643810,-407.49,0.00010962,2]
[361080778,1747236643819,-1128.08,0.00010962,2]
[361080779,1747236643829,-400.0,0.00010962,2]
[361080780,1747236643838,-551.18,0.00010962,2]
[361080781,1747236643847,-400.0,0.00010962,2]
[361080782,1747236643856,-400.0,0.00010962,2]